bitfinex/quotes_SOLUSD_20250915
["timestamp","ask_amount","ask_price","bid_price","bid_amount"]
[1757907745647,0.7,243.15,243.1,32.51845646]
[1757907745805,0.7,243.14,243.11,4.11336432]
[1757907746002,0.7,243.13,243.12,31.58]
[1757907746816,0.7,243.13,243.12,39.80537918]
[1757907752107,0.06,243.15,243.13,13.59559401]
[1757907752423,0.06,243.15,243.14,72.639331]
[1757907752721,0.06,243.15,243.14,74.9377619]
[1757907753426,0.06,243.15,243.14,79.05061869]
[1757907754129,0.06,243.15,243.14,47.47061869]
[1757907754311,0.06,243.15,243.14,79.05061869]
[1757907756216,0.06,243.15,243.14,47.47061869]
[1757907756415,0.06,243.15,243.14,79.05061869]
[1757907756617,0.76,243.15,243.14,33.2284309]
[1757907757710,0.76,243.15,243.14,37.34128769]
[1757907758824,0.76,243.15,243.14,1.6484309]
[1757907759025,2.22373699,243.15,243.14,1.6484309]
[1757907759235,2.22373699,243.15,243.1,4.11341385]
[1757907759418,1.46373699,243.13,243.12,2.22373699]
[1757907759620,0.68,243.13,243.12,33.80373699]
[1757907760312,0.06,243.15,243.12,33.80373699]
[1757907760510,0.68,243.14,243.12,33.80373699]
[1757907760707,0.68,243.14,243.12,35.69317818]
[1757907762112,0.68,243.14,243.1,4.11353352]
[1757907762313,2.14373699,243.14,243.11,31.56]
[1757907762518,2.14373699,243.14,243.1,4.11353352]
[1757907762712,0.68,243.13,243.11,31.56]
[1757907763158,0.06,243.15,243.11,31.56]
[1757907763309,1.46373699,243.14,243.11,31.56]
[1757907763947,2.14373699,243.14,243.11,31.56]
[1757907764467,2.14373699,243.14,243.12,4.11319512]
[1757907764628,2.14373699,243.14,243.13,31.56]
[1757907764830,0.06,243.15,243.13,31.56]
[1757907764831,0.06,243.15,243.13,32.25]
[1757907766037,0.06,243.15,243.13,31.56]
[1757907766246,0.74,243.15,243.13,31.56]
[1757907766462,1.46373699,243.14,243.11,4.11336432]
[1757907766634,1.46373699,243.14,243.12,31.56]
[1757907767857,1.46373699,243.14,243.13,4.11302595]
[1757907773042,0.06,243.15,243.13,4.11302595]
[1757907773364,1.52373699,243.15,243.14,31.56]
[1757907774049,2.20373699,243.15,243.14,31.56]
[1757907774948,1.52373699,243.15,243.14,31.56]
[1757907775951,1.52373699,243.15,243.14,35.67285679]
[1757907776463,2.23373699,243.15,243.14,31.56]
[1757907778159,2.23373699,243.15,243.12,4.11318712]
[1757907778358,1.46373699,243.14,243.13,31.56]
[1757907778959,2.17373699,243.14,243.13,31.56]
[1757907780156,0.71,243.14,243.13,31.56]
[1757907780356,2.17373699,243.14,243.13,31.56]
[1757907783067,1.46373699,243.14,243.13,31.56]
[1757907783658,2.17373699,243.14,243.13,31.56]
[1757907784476,1.46373699,243.14,243.13,31.56]
[1757907785061,1.52373699,243.15,243.13,31.56]
[1757907785263,2.23373699,243.15,243.13,31.56]
[1757907785455,0.77,243.15,243.13,31.56]
[1757907785776,2.23373699,243.15,243.13,31.56]
[1757907787180,0.06,243.14,243.13,31.56]
[1757907788673,6.32659378,243.14,243.13,31.56]
[1757907788976,6.32659378,243.14,243.11,31.56]
[1757907789176,1.46373699,243.12,243.11,31.56]
[1757907789361,2.15373699,243.12,243.05,0.69]
[1757907789561,1.46373699,243.09,243.06,31.56]
[1757907789761,2.15373699,243.09,243.06,31.56]
[1757907789976,1.46373699,243.09,243.06,31.56]
[1757907790175,1.46373699,243.09,243.06,32.25]
[1757907790374,1.46373699,243.09,243.06,31.56]
[1757907790693,1.46373699,243.09,243.06,32.25]
[1757907791277,1.46373699,243.09,243.07,0.69]
[1757907791482,1.46373699,243.09,243.08,31.56]
[1757907793964,2.15373699,243.09,243.08,31.56]
[1757907794159,1.46373699,243.09,243.08,31.56]
[1757907794462,6.26743973,243.09,243.08,31.56]
[1757907794986,6.26743973,243.09,243.01,0.03]
[1757907795181,1.46373699,243.04,243.02,31.56]
[1757907795485,1.46373699,243.04,243.02,32.25]
[1757907797692,1.46373699,243.03,243.02,31.56]
[1757907797894,2.15373699,243.03,243.02,31.56]
[1757907798076,2.15373699,243.03,243.01,0.03]
[1757907798270,1.46373699,243.02,243.01,0.03]
[1757907799074,2.15373699,243.02,243.01,0.03]
[1757907799593,6.26862465,243.02,243.01,0.03]
[1757907802979,21.32795565,243.02,243.01,0.03]
[1757907803192,22.35857002,243.02,243.01,0.03]
[1757907803494,19.43109604,243.02,243.01,0.03]
[1757907803795,20.89483303,243.02,243.01,0.03]
[1757907804206,19.86421866,243.02,243.01,0.03]
[1757907804581,4.80488766,243.02,243.01,0.03]
[1757907804784,1.46373699,243.02,243.01,0.03]
[1757907805573,30.11435197,243.06,243.01,0.72]
[1757907805773,1.46373699,243.04,243.01,0.72]
[1757907807771,1.46373699,243.04,243.02,0.69]
[1757907807972,26.0,243.06,243.02,0.69]
[1757907807973,1.46373699,243.03,243.02,0.69]
[1757907809010,10.28427686,243.09,243.02,0.69]
[1757907809189,1.46373699,243.05,243.02,0.69]
[1757907809994,0.93765259,243.05,243.02,0.69]
[1757907810202,0.93765259,243.05,243.03,0.69]
[1757907810579,0.93765259,243.06,243.03,0.69]
[1757907811397,4.11397901,243.08,243.03,0.69]
[1757907811398,0.93765259,243.05,243.03,0.69]
[1757907812402,0.93765259,243.08,243.04,0.69]
[1757907812591,0.93765259,243.08,243.05,0.69]
[1757907812796,0.93765259,243.08,243.06,0.69]
[1757907812982,0.93765259,243.08,243.03,4.1147095]
[1757907813183,0.93765259,243.08,243.04,0.69]
[1757907813383,0.93765259,243.08,243.03,4.1147095]
[1757907813384,0.93765259,243.08,243.05,0.69]
[1757907813685,0.93765259,243.06,243.01,0.03]
[1757907813995,0.93765259,243.03,243.01,0.03]
[1757907814208,0.93765259,243.03,243.01,0.72]
[1757907814988,0.93765259,243.02,243.01,0.03]
[1757907817103,4.11455052,243.04,243.01,0.03]
[1757907817308,0.93765259,243.02,243.01,0.03]
[1757907817897,18.64813426,243.02,243.01,0.03]
[1757907818095,19.33813426,243.02,243.01,0.03]
[1757907818295,5.74254025,243.02,243.01,0.03]
[1757907820736,0.93765259,243.03,243.01,0.73]
[1757907822005,0.7,243.02,243.01,0.03]
[1757907822205,5.0524059,243.03,243.01,0.03]
[1757907826386,0.7,243.02,243.01,0.03]
[1757907826889,1.63765259,243.02,243.01,0.03]
[1757907827398,0.93765259,243.02,243.01,0.03]
[1757907827598,0.93765259,243.02,243.01,0.73]
[1757907828922,0.93765259,243.02,243.01,0.03]
[1757907832314,5.05254025,243.02,243.01,0.03]
[1757907833608,5.75254025,243.02,243.01,0.03]
[1757907833818,6.7830114,243.02,243.01,0.03]
[1757907835508,5.14535881,243.02,243.01,0.03]
[1757907835699,5.05254025,243.02,243.01,0.03]
[1757907837801,5.75254025,243.02,243.01,0.03]
[1757907838129,6.7831016,243.02,243.01,0.03]
[1757907838515,26.72533661,243.02,243.01,0.03]
[1757907839122,28.37573993,243.02,243.01,0.03]
[1757907841539,28.43573993,243.02,243.01,0.03]
[1757907844642,39.59559401,242.99,242.98,0.03]
[1757907844824,39.59559401,242.99,242.95,0.03]
[1757907844825,73.20380795,242.99,242.95,0.03]
[1757907845025,73.20380795,242.99,242.92,0.03]
[1757907845026,26.0,242.94,242.92,0.03]
[1757907845341,26.93765259,242.93,242.92,0.03]
[1757907845641,27.63765259,242.93,242.92,0.03]
[1757907846153,31.75406472,242.93,242.92,0.03]
[1757907847143,31.75406472,242.93,242.92,0.75]
[1757907847144,26.0,242.93,242.92,0.75]
[1757907847332,0.93765259,242.95,242.92,0.75]
[1757907849951,0.93765259,242.94,242.92,0.75]
[1757907850250,0.93765259,242.95,242.92,0.75]
[1757907850422,136.61569732,242.98,242.92,0.75]
[1757907850621,0.93765259,242.96,242.92,0.75]
[1757907851350,0.93765259,242.95,242.92,0.75]
[1757907851534,0.93765259,242.94,242.92,0.75]
[1757907851935,4.11589757,242.97,242.92,0.75]
[1757907852134,0.93765259,242.95,242.92,0.75]
[1757907855626,0.93765259,242.96,242.92,4.86658027]
[1757907855927,0.93765259,242.96,242.93,0.71]
[1757907858148,0.93765259,242.96,242.92,0.03]
[1757907858455,0.93765259,242.96,242.94,0.71]
[1757907859254,0.93765259,242.95,242.94,0.71]
[1757907860037,0.93765259,242.95,242.94,0.74]
[1757907861144,0.93765259,242.95,242.94,0.03]
[1757907862058,5.05372585,242.95,242.94,0.03]
[1757907865353,5.72372585,242.95,242.94,0.03]
[1757907865658,31.72372585,242.95,242.94,0.03]
[1757907867631,31.05372585,242.95,242.94,0.03]
[1757907868647,31.72372585,242.95,242.94,0.03]
[1757907870638,32.75451102,242.95,242.94,0.03]
[1757907871842,33.28384161,242.95,242.94,0.03]
[1757907872239,46.87943562,242.95,242.94,0.03]
[1757907873285,48.53031575,242.95,242.94,0.03]
[1757907873762,46.20943562,242.95,242.94,0.03]
[1757907875476,46.87943562,242.95,242.94,0.03]
[1757907876172,46.20943562,242.95,242.94,0.03]
[1757907876873,31.14685843,242.95,242.94,0.03]
[1757907877073,32.61384161,242.95,242.94,0.74]
[1757907877471,31.58305644,242.95,242.94,0.74]
[1757907877870,5.58305644,242.95,242.94,0.74]
[1757907881175,6.61381135,242.95,242.94,0.74]
[1757907881879,6.61381135,242.95,242.94,0.03]
[1757907885480,1.03075491,242.95,242.94,0.03]
[1757907885687,0.06,242.96,242.94,0.74]
[1757907887473,0.06,242.96,242.94,0.03]
[1757907887677,0.06,242.96,242.95,0.71]
[1757907889680,0.06,242.96,242.94,0.03]
[1757907889881,1.46698318,242.95,242.94,0.03]
[1757907890461,3.21769886,242.95,242.94,0.03]
[1757907890960,2.49769886,242.95,242.94,0.03]
[1757907893500,6.61377212,242.95,242.94,0.03]
[1757907893691,7.33377212,242.95,242.94,0.03]
[1757907895596,6.61377212,242.95,242.94,0.73]
[1757907896389,2.49769886,242.95,242.94,0.73]
[1757907896900,2.4977354,242.95,242.94,0.73]
[1757907897396,6.61380866,242.95,242.94,0.73]
[1757907899091,1.03075222,242.95,242.94,0.73]
[1757907900500,0.06,242.96,242.94,4.84624269]
[1757907901094,0.06,242.96,242.95,0.7]
[1757907901400,0.06,242.96,242.95,4.81607326]
[1757907902295,0.06,242.96,242.95,0.7]
[1757907903976,0.06,242.96,242.95,4.81607326]
[1757907904487,0.06,242.96,242.95,19.87865045]
[1757907904686,0.06,242.99,242.95,16.5732396]
[1757907904884,0.06,242.99,242.98,1.46698318]
[1757907905397,0.06,242.99,242.98,6.28254824]
[1757907905997,0.06,242.99,242.98,19.87814225]
[1757907906801,1e-08,242.99,242.98,19.87814225]
[1757907908919,1e-08,243.01,242.98,19.87814225]
[1757907909082,1e-08,243.02,243.01,13.59559401]
[1757907909289,1e-08,243.02,243.01,15.06257719]
[1757907909490,1e-08,243.02,243.01,15.75257719]
[1757907909690,1e-08,243.02,243.01,17.4016877]
[1757907909895,0.06,243.07,243.05,13.59559401]
[1757907910107,0.06,243.11,243.07,13.59559401]
[1757907910405,0.06,243.11,243.07,19.17661841]
[1757907910605,0.06,243.11,243.1,39.59559401]
[1757907910824,0.06,243.11,243.1,41.06257719]
[1757907910987,0.06,243.11,243.1,41.75257719]
[1757907911587,0.06,243.11,243.1,59.85698318]
[1757907911909,0.06,243.11,243.1,33.32877064]
[1757907912116,0.06,243.11,243.1,31.68]
[1757907912894,0.06,243.11,243.1,31.7]
[1757907913099,1.52698318,243.11,243.1,31.7]
[1757907913919,0.06,243.11,243.1,32.39]
[1757907914088,0.06,243.11,243.1,33.85698318]
[1757907914287,0.06,243.11,243.1,37.9705167]
[1757907919701,0.06,243.11,243.1,39.61942327]
[1757907923313,0.06,243.11,243.1,38.15244009]
[1757907923517,0.06,243.11,243.1,39.61942327]
[1757907924724,0.06,243.14,243.13,26.0]
[1757907924907,0.06,243.14,243.13,72.72257719]
[1757907925229,0.06,243.14,243.13,73.41257719]
[1757907925428,0.06,243.14,243.13,75.06114397]
[1757907926707,0.06,243.14,243.13,79.17416992]
[1757907931051,0.06,243.14,243.13,47.51416992]
[1757907931410,0.06,243.14,243.13,79.15416992]
[1757907933936,0.06,243.14,243.13,78.62338425]
[1757907935242,0.06,243.16,243.14,13.59559401]
[1757907935439,0.06,243.16,243.15,46.17179152]
[1757907935641,0.06,243.16,243.15,46.15179152]
[1757907935938,0.06,243.16,243.15,48.49008656]
[1757907936344,0.06,243.16,243.15,52.6027742]
[1757907940864,0.06,243.16,243.15,20.9827742]
[1757907941220,0.06,243.16,243.15,50.93447916]
[1757907943060,0.06,243.16,243.15,18.64447916]
[1757907943220,0.06,243.16,243.15,50.24447916]
[1757907944449,0.06,243.16,243.15,50.94447916]
[1757907947945,0.06,243.16,243.15,19.34447916]
[1757907948149,0.06,243.16,243.15,50.94447916]
[1757907949024,0.06,243.16,243.15,50.24447916]
[1757907950720,0.06,243.16,243.15,50.94447916]
[1757907952265,0.06,243.16,243.15,19.34447916]
[1757907952465,0.06,243.16,243.15,50.92447916]
[1757907960655,0.06,243.17,243.15,50.92447916]
[1757907960656,0.06,243.17,243.16,13.59559401]
[1757907960865,0.06,243.17,243.16,15.24179152]
[1757907962280,0.06,243.17,243.16,19.35431002]
[1757907965375,0.06,243.17,243.16,18.64431002]
[1757907966559,0.76,243.17,243.16,17.70811251]
[1757907966763,0.76,243.17,243.16,49.26811251]
[1757907966971,0.06,243.17,243.16,50.20431002]
[1757907968580,0.77,243.17,243.16,50.20431002]
[1757907968780,0.77,243.17,243.16,17.70811251]
[1757907968985,0.77,243.17,243.16,50.20431002]
[1757907969558,0.77,243.17,243.16,49.26811251]
[1757907969757,0.77,243.17,243.16,75.26811251]
[1757907969961,0.06,243.17,243.16,76.20431002]
[1757907970681,0.06,243.17,243.16,76.89431002]
[1757907970851,0.06,243.17,243.16,50.89431002]
[1757907974676,0.06,243.19,243.18,39.59559401]
[1757907974875,0.06,243.19,243.18,72.09179152]
[1757907976285,0.06,243.19,243.18,76.20397179]
[1757907976492,0.06,243.19,243.18,76.89397179]
[1757907977385,0.06,243.19,243.18,76.20397179]
[1757907979276,0.06,243.19,243.18,76.89397179]
[1757907985491,0.06,243.2,243.18,50.89397179]
[1757907985798,0.06,243.2,243.19,1.62619751]
[1757907986197,0.06,243.22,243.19,1.62619751]
[1757907986198,0.06,243.22,243.19,15.22179152]
[1757907986497,0.06,243.22,243.21,40.53179152]
[1757907986869,0.06,243.22,243.21,41.22179152]
[1757907987588,0.06,243.22,243.21,44.64346455]
[1757907990200,0.06,243.22,243.21,45.33346455]
[1757907992292,0.77,243.22,243.21,30.11167303]
[1757907992472,0.77,243.22,243.21,35.67167303]
[1757907996374,0.06,243.22,243.21,35.67167303]
[1757907996576,0.06,243.22,243.21,37.13427395]
[1757907999394,0.06,243.22,243.21,51.38986796]
[1757908000605,0.06,243.22,243.21,50.72986796]
[1757908001507,0.06,243.22,243.21,52.37782347]
[1757908001712,0.06,243.22,243.21,53.03782347]
[1757908002483,0.06,243.22,243.21,52.37782347]
[1757908005106,0.06,243.22,243.21,53.03782347]
[1757908007216,0.06,243.22,243.21,52.37782347]
[1757908007386,0.06,243.22,243.21,78.37782347]
[1757908007587,0.06,243.22,243.21,79.03782347]
[1757908007886,0.06,243.22,243.21,53.03782347]
[1757908010395,0.71,243.27,243.25,26.0]
[1757908010712,0.71,243.27,243.26,31.56]
[1757908011113,0.71,243.27,243.26,35.66931742]
[1757908012813,0.71,243.27,243.26,39.78014534]
[1757908013021,1.46260092,243.31,243.26,39.78014534]
[1757908013392,1.46260092,243.31,243.26,35.67082792]
[1757908013819,1.46260092,243.31,243.27,4.10952305]
[1757908014019,1.46260092,243.31,243.28,31.56]
[1757908014691,1.46260092,243.31,243.28,35.66969074]
[1757908015212,0.54,243.3,243.28,35.66969074]
[1757908015508,0.54,243.29,243.28,35.66969074]
[1757908016992,0.54,243.31,243.28,39.78018071]
[1757908017192,2.00260092,243.31,243.28,39.78018071]
[1757908017395,0.54,243.3,243.28,35.67048997]
[1757908017610,0.54,243.3,243.28,48.02913794]
[1757908017817,0.54,243.3,243.28,16.46913794]
[1757908018118,0.54,243.3,243.29,31.56]
[1757908018303,0.54,243.3,243.29,33.20781973]
[1757908019695,4.10913872,243.36,243.29,33.20781973]
[1757908019891,1.46260092,243.31,243.29,33.20781973]
[1757908020090,1.46260092,243.31,243.29,37.31806914]
[1757908020595,1.46260092,243.31,243.29,35.67024941]
[1757908020920,1.46260092,243.31,243.3,4.10913872]
[1757908021315,1.46260092,243.31,243.29,31.56]
[1757908021698,1.46260092,243.31,243.29,35.66913872]
[1757908021906,2.00260092,243.31,243.29,35.66913872]
[1757908022422,1.46260092,243.31,243.29,35.66913872]
[1757908022625,2.00260092,243.3,243.21,24.52462916]
[1757908022804,4.11000728,243.31,243.21,24.52462916]
[1757908022805,1.46260092,243.28,243.22,71.78559401]
[1757908023119,1.46260092,243.28,243.25,12.35966629]
[1757908023316,1.46260092,243.28,243.26,31.54]
[1757908024299,2.00260092,243.27,243.23,4.11117197]
[1757908024506,1.46260092,243.27,243.26,1.64795551]
[1757908024703,1.46260092,243.27,243.26,31.54]
[1757908024901,1.46260092,243.27,243.22,26.0]
[1757908025099,0.54,243.26,243.25,1.6480234]
[1757908025317,0.54,243.26,243.25,31.54]
[1757908026225,1.46260092,243.27,243.25,31.54]
[1757908026534,1.46260092,243.28,243.25,36.30094477]
[1757908027714,1.46260092,243.28,243.26,0.65]
[1757908027914,1.46260092,243.28,243.27,31.54]
[1757908030943,2.00260092,243.28,243.27,31.54]
[1757908031133,2.00260092,243.28,243.24,4.64998423]
[1757908031333,1.46260092,243.26,243.25,31.54]
[1757908032641,1.46260092,243.27,243.25,32.2]
[1757908033140,0.06,243.3,243.25,36.31086865]
[1757908033343,1.46260092,243.28,243.26,0.66]
[1757908033532,1.46260092,243.28,243.26,32.2]
[1757908035348,0.06,243.3,243.27,0.66]
[1757908035544,1.46260092,243.29,243.28,31.54]
[1757908035729,1.52260092,243.3,243.28,32.2]
[1757908036632,0.06,243.3,243.28,31.54]
[1757908036838,0.06,243.3,243.29,0.66]
[1757908037550,0.06,243.3,243.29,13.01813886]
[1757908037947,0.06,243.3,243.29,14.48073978]
[1757908038640,0.06,243.3,243.29,18.59106079]
[1757908039156,0.06,243.3,243.29,17.12845987]
[1757908041145,0.06,243.3,243.29,18.59106079]
[1757908041659,0.06,243.3,243.29,32.1866548]
[1757908047052,0.06,243.3,243.29,18.59106079]
[1757908047252,0.06,243.3,243.29,48.00845987]
[1757908047427,0.06,243.3,243.29,35.65032101]
[1757908047631,0.06,243.3,243.29,33.18768397]
[1757908047829,2.06260092,243.3,243.29,33.18768397]
[1757908048046,1.52260092,243.3,243.29,31.54]
[1757908048760,0.06,243.3,243.29,35.65032101]
[1757908050750,0.06,243.3,243.29,31.54]
[1757908051054,2.06260092,243.3,243.29,31.54]
[1757908051249,2.06260092,243.3,243.26,26.03]
[1757908051441,1.46260092,243.27,243.26,33.44950364]
[1757908051647,1.46260092,243.27,243.26,38.98950364]
[1757908051848,1.46260092,243.27,243.26,31.57]
[1757908052047,1.46260092,243.27,243.26,35.68000171]
[1757908052242,1.46260092,243.27,243.26,4.14000171]
[1757908052550,1.46260092,243.27,243.26,31.57]
[1757908054161,0.54,243.28,243.26,31.57]
[1757908054363,1.46260092,243.27,243.26,31.57]
[1757908055341,1.46260092,243.27,243.26,0.03]
[1757908055553,1.46260092,243.27,243.26,31.57]
[1757908055757,0.93597441,243.27,243.26,31.57]
[1757908056263,1.47597441,243.27,243.26,31.57]
[1757908057348,5.58663334,243.27,243.26,31.57]
[1757908058472,0.93597441,243.27,243.26,31.57]
[1757908058844,0.93597441,243.27,243.26,32.24]
[1757908060046,0.93597441,243.27,243.26,31.57]
[1757908061377,5.58663334,243.27,243.26,31.57]
[1757908061582,5.58663334,243.27,243.26,0.03]
[1757908062580,0.93597441,243.27,243.26,0.03]
[1757908065779,5.58663334,243.27,243.26,0.03]
[1757908068981,6.61603878,243.27,243.26,0.03]
[1757908069163,9.38532822,243.27,243.26,0.03]
[1757908069362,6.61603878,243.27,243.26,0.03]
[1757908069855,9.38532822,243.27,243.26,0.03]
[1757908070279,6.61603878,243.27,243.26,0.03]
[1757908070581,9.38532822,243.27,243.26,0.03]
[1757908070783,6.61603878,243.27,243.26,0.03]
[1757908070988,9.38532822,243.27,243.26,0.03]
[1757908071189,6.61603878,243.27,243.26,0.03]
[1757908071377,9.38532822,243.27,243.26,0.03]
[1757908071578,6.61603878,243.27,243.26,0.03]
[1757908071777,9.38532822,243.27,243.26,0.03]
[1757908072073,6.61603878,243.27,243.26,0.03]
[1757908072283,9.38532822,243.27,243.26,0.03]
[1757908072486,6.61603878,243.27,243.26,0.03]
[1757908072871,9.38532822,243.27,243.26,0.03]
[1757908073088,6.61603878,243.27,243.26,0.03]
[1757908073769,10.35993642,243.27,243.26,0.03]
[1757908073993,26.0,243.24,243.23,0.03]
[1757908074292,30.67987205,243.24,243.23,0.03]
[1757908074509,31.21987205,243.24,243.23,0.03]
[1757908075094,30.67987205,243.24,243.23,0.03]
[1757908076091,34.79103797,243.24,243.23,0.03]
[1757908076301,35.33103797,243.24,243.23,0.03]
[1757908078894,167.83103797,243.24,243.23,0.03]
[1757908080295,167.29103797,243.24,243.23,0.03]
[1757908081602,178.10895278,243.24,243.2,0.03]
[1757908081780,0.93597441,243.21,243.2,0.03]
[1757908083808,5.04764744,243.21,243.2,0.03]
[1757908090412,15.86683003,243.21,243.18,0.03]
[1757908090613,4.11167303,243.21,243.19,0.69]
[1757908090914,0.93597441,243.2,243.19,0.69]
[1757908091590,5.04781651,243.2,243.19,0.69]
[1757908094298,5.04781651,243.2,243.18,0.03]
[1757908094505,0.93597441,243.19,243.18,0.03]
[1757908095205,0.93597441,243.19,243.18,0.72]
[1757908096421,5.04798559,243.19,243.18,0.72]
[1757908101620,0.06,243.24,243.18,4.83208814]
[1757908101796,0.06,243.24,243.19,0.69]
[1757908101995,0.93597441,243.23,243.19,0.69]
[1757908102225,0.06,243.24,243.19,0.69]
[1757908102431,0.06,243.24,243.19,8.59803087]
[1757908102595,0.06,243.24,243.2,0.69]
[1757908103020,0.99597441,243.24,243.2,0.69]
[1757908103235,0.06,243.24,243.2,0.69]
[1757908103409,0.06,243.24,243.22,4.11150398]
[1757908103599,0.06,243.24,243.23,0.69]
[1757908105322,0.06,243.24,243.23,4.80133495]
[1757908109229,0.06,243.24,243.23,5.73730936]
[1757908109529,0.06,243.24,243.23,4.80133495]
[1757908109823,0.06,243.24,243.23,6.44935835]
[1757908112227,0.99597441,243.24,243.21,31.54]
[1757908112427,0.93597441,243.22,243.21,31.54]
[1757908112737,0.93597441,243.22,243.21,32.23]
[1757908116336,0.93597441,243.22,243.21,32.26]
[1757908117812,1.46288869,243.22,243.21,32.26]
[1757908119955,1.46288869,243.22,243.21,0.72]
[1757908120114,0.06,243.24,243.21,0.72]
[1757908120445,1.46288869,243.23,243.22,0.69]
[1757908121017,0.06,243.24,243.22,0.69]
[1757908121333,1.46288869,243.23,243.21,4.14165461]
[1757908121634,1.46288869,243.23,243.22,0.69]
[1757908121836,1.46288869,243.23,243.22,4.80150398]
[1757908122634,1.52288869,243.24,243.22,4.80150398]
[1757908122941,1.52288869,243.24,243.23,0.69]
[1757908124637,1.52288869,243.24,243.22,4.11150398]
[1757908124934,0.06,243.24,243.23,0.69]
[1757908125941,0.06,243.24,243.23,4.80133495]
[1757908126922,0.06,243.24,243.23,6.26422364]
[1757908131545,0.06,243.24,243.23,19.85981765]
[1757908132545,0.06,243.24,243.23,51.37981765]
[1757908133345,0.06,243.24,243.23,18.39692896]
[1757908133525,0.06,243.24,243.23,36.32133495]
[1757908133843,0.06,243.24,243.23,35.63133495]
[1757908134344,1.52288869,243.24,243.23,35.63133495]
[1757908134718,0.06,243.24,243.23,36.32133495]
[1757908140445,0.06,243.24,243.23,51.37981765]
[1757908144040,0.06,243.24,243.23,4.80133495]
[1757908144250,0.06,243.24,243.23,35.63133495]
[1757908145742,0.06,243.24,243.23,36.33133495]
[1757908146130,0.06,243.24,243.23,35.63133495]
[1757908146544,0.06,243.24,243.23,36.33133495]
[1757908146846,0.06,243.24,243.23,35.63133495]
[1757908147042,0.06,243.24,243.23,31.52]
[1757908148142,0.06,243.24,243.23,35.63133495]
[1757908148845,0.06,243.24,243.23,36.34133495]
[1757908150654,0.06,243.24,243.23,35.63133495]
[1757908150949,0.06,243.24,243.23,36.34133495]
[1757908154965,0.06,243.24,243.23,4.82133495]
[1757908155166,0.06,243.24,243.23,35.63133495]
[1757908156568,0.6,243.24,243.22,4.11143863]
[1757908156752,2.00288869,243.23,243.21,0.03]
[1757908157069,0.54,243.23,243.22,31.52]
[1757908158139,2.00288869,243.23,243.22,31.52]
[1757908159956,1.46288869,243.23,243.22,31.52]
[1757908161576,0.06,243.24,243.22,36.34150398]
[1757908161753,0.06,243.24,243.23,0.71]
[1757908162643,0.06,243.24,243.23,4.82133495]
[1757908171146,1.52288869,243.27,243.24,13.59559401]
[1757908171147,0.06,243.27,243.24,13.59559401]
[1757908171352,0.06,243.27,243.26,15.0584827]
[1757908171748,0.06,243.27,243.26,15.7684827]
[1757908172677,0.06,243.27,243.26,18.41642193]
[1757908172847,0.06,243.27,243.26,30.82082792]
[1757908173179,0.06,243.27,243.26,62.40082792]
[1757908175070,0.06,243.27,243.26,63.86371661]
[1757908177968,0.06,243.27,243.26,63.33626927]
[1757908184691,0.06,243.27,243.26,63.29626927]
[1757908184988,0.06,243.27,243.26,37.29626927]
[1757908185585,0.06,243.27,243.26,38.94402112]
[1757908186383,0.6,243.27,243.26,5.75857977]
[1757908186584,0.6,243.27,243.26,35.63082792]
[1757908186773,0.06,243.27,243.26,35.63082792]
[1757908191385,0.6,243.27,243.26,31.52]
[1757908191590,0.06,243.27,243.26,35.63082792]
[1757908200904,0.06,243.27,243.26,36.34082792]